bitfinex/quotes_SOLUSD_20251218
["timestamp","ask_amount","ask_price","bid_price","bid_amount"]
[1766067349562,0.7,125.98,125.94,6.7614461]
[1766067349868,0.7,125.98,125.95,6.7614461]
[1766067350339,35.28215822,126.01,125.91,14.70359917]
[1766067350340,7.93671154,126.0,125.96,6.7614461]
[1766067350536,0.7,126.0,125.93,7.94083369]
[1766067350844,0.7,126.0,125.94,7.94020633]
[1766067351054,0.7,126.0,125.93,7.94054685]
[1766067351362,8.6365293,126.0,125.97,6.7614461]
[1766067351663,8.63671794,126.0,125.96,6.7614461]
[1766067351865,0.7,125.99,125.95,6.7614461]
[1766067352162,0.7,125.99,125.92,8.68]
[1766067352354,0.7,125.99,125.9,10.43767296]
[1766067352545,7.4614461,125.99,125.94,6.7614461]
[1766067352864,0.7,125.98,125.94,6.7614461]
[1766067353067,0.7,125.98,125.92,10.43767296]
[1766067353372,0.7,125.98,125.89,8.68]
[1766067353537,7.93839803,125.97,125.89,16.62311206]
[1766067353738,8.63839803,125.97,125.89,16.62311206]
[1766067353963,0.7,125.97,125.94,6.7614461]
[1766067354264,0.7,125.97,125.89,36.48171878]
[1766067354448,0.7,125.97,125.94,6.7614461]
[1766067354864,0.7,125.98,125.89,16.62311206]
[1766067355065,0.7,125.94,125.9,6.7614461]
[1766067355266,0.7,125.98,125.89,7.94337447]
[1766067355566,8.63923318,125.96,125.92,6.7614461]
[1766067355737,0.7,125.96,125.88,7.94385133]
[1766067355941,8.63936048,125.96,125.92,6.7614461]
[1766067357571,0.7,125.96,125.93,6.7614461]
[1766067357770,8.63780388,125.98,125.9,10.43767296]
[1766067357947,8.63780388,125.98,125.94,6.7614461]
[1766067358264,8.63780388,125.98,125.9,10.43767296]
[1766067358265,0.7,125.98,125.91,6.7614461]
[1766067358568,8.63680084,126.0,125.96,6.7614461]
[1766067359270,0.7,126.0,125.96,6.7614461]
[1766067359974,0.7,125.99,125.96,6.7614461]
[1766067360341,0.7,125.99,125.92,8.68]
[1766067360545,0.7,125.99,125.95,6.7614461]
[1766067360774,0.7,125.99,125.96,6.7614461]
[1766067361683,8.62604339,126.01,125.98,6.7614461]
[1766067361868,0.69,126.0,125.95,6.7614461]
[1766067362185,0.69,125.99,125.95,6.7614461]
[1766067362348,0.69,125.98,125.92,8.68]
[1766067362667,0.69,125.98,125.94,6.7614461]
[1766067363046,7.93604339,126.01,125.95,6.7614461]
[1766067363392,0.69,126.14,126.01,7.93604339]
[1766067363546,0.69,126.14,126.02,22.61726782]
[1766067363742,0.69,126.13,126.09,6.7614461]
[1766067363942,0.69,126.13,126.05,10.43767296]
[1766067364167,0.2,126.15,126.11,6.7614461]
[1766067364348,0.2,126.15,126.13,6.7614461]
[1766067364544,0.69,126.18,126.1,27.75565627]
[1766067364768,6.7614461,126.15,126.11,5.79061038]
[1766067364975,0.69,126.15,126.12,6.7614461]
[1766067365278,0.69,126.18,126.14,6.7614461]
[1766067365455,6.7614461,126.27,126.14,8.68]
[1766067365456,0.69,126.24,126.14,8.68]
[1766067365649,0.69,126.21,126.14,8.68]
[1766067365843,0.69,126.2,126.16,6.7614461]
[1766067366043,0.69,126.2,126.17,6.7614461]
[1766067366248,10.43767296,126.26,126.14,8.68]
[1766067366249,0.99999999,126.31,126.14,8.68]
[1766067366443,0.69,126.24,126.14,8.68]
[1766067366769,0.69,126.22,126.14,8.68]
[1766067366992,0.69,126.22,126.14,19.11767296]
[1766067367275,0.69,126.24,126.19,6.7614461]
[1766067367477,0.69,126.24,126.2,6.7614461]
[1766067367677,6.7614461,126.26,126.16,27.74254914]
[1766067367870,6.7614461,126.24,126.14,30.25646294]
[1766067368173,7.92032392,126.26,126.15,8.68]
[1766067368174,0.69,126.21,126.15,8.68]
[1766067368378,0.69,126.21,126.16,15.4414461]
[1766067368577,7.4514461,126.2,126.14,15.4414461]
[1766067368782,7.4514461,126.2,126.15,6.7614461]
[1766067368982,7.41956138,126.2,126.15,6.72956138]
[1766067369179,7.41956138,126.2,126.14,8.68]
[1766067369368,0.69,126.24,126.14,16.60760096]
[1766067369576,0.69,126.24,126.16,6.72956138]
[1766067369785,6.72956138,126.23,126.17,6.72956138]
[1766067370077,0.69,126.23,126.19,6.72956138]
[1766067370280,0.69,126.21,126.16,8.68]
[1766067370497,0.69,126.2,126.14,10.43767296]
[1766067370784,46.96826386,126.26,126.14,15.40956138]
[1766067370785,0.69,126.18,126.14,15.40956138]
[1766067370952,0.69,126.18,126.15,6.72956138]
[1766067371156,0.69,126.17,126.1,7.93007328]
[1766067371355,0.69,126.17,126.11,10.43767296]
[1766067371583,0.69,126.17,126.13,6.72956138]
[1766067371763,0.69,126.17,126.11,8.68]
[1766067372163,0.69,126.17,126.08,19.82833296]
[1766067372164,0.69,126.16,126.08,7.93088845]
[1766067372459,7.37956138,126.16,126.09,8.68]
[1766067372678,0.65,126.16,126.12,6.72956138]
[1766067372959,6.72956138,126.19,126.11,8.66]
[1766067373180,7.37956138,126.17,126.1,16.59011504]
[1766067373384,0.65,126.16,126.12,6.72956138]
[1766067374480,27.92761788,126.23,126.14,6.72956138]
[1766067374481,7.37956138,126.19,126.14,6.72956138]
[1766067374685,0.65,126.18,126.1,8.66]
[1766067374894,0.65,126.18,126.11,7.92914243]
[1766067375093,0.65,126.21,126.16,6.72956138]
[1766067375458,0.65,126.2,126.16,6.72956138]
[1766067376270,0.65,126.2,126.15,8.66]
[1766067376487,0.65,126.2,126.18,6.72956138]
[1766067376664,0.65,126.22,126.18,6.72956138]
[1766067376992,0.65,126.22,126.15,8.66]
[1766067377359,6.72956138,126.21,126.11,16.7395302]
[1766067377559,0.65,126.18,126.14,6.72956138]
[1766067377792,0.65,126.18,126.12,16.58886304]
[1766067378093,0.65,126.18,126.14,6.72956138]
[1766067378466,0.65,126.18,126.15,6.72956138]
[1766067378976,0.65,126.2,126.16,6.72956138]
[1766067379171,0.65,126.23,126.14,7.92767064]
[1766067379411,0.65,126.23,126.2,6.72956138]
[1766067379569,6.72956138,126.26,126.14,67.38541599]
[1766067379772,0.65,126.22,126.18,6.72956138]
[1766067380478,7.37956138,126.22,126.17,6.72956138]
[1766067380789,0.65,126.22,126.17,7.9257288]
[1766067380979,0.65,126.22,126.19,6.72956138]
[1766067381570,19.79620807,126.29,126.21,6.72956138]
[1766067381778,0.65,126.26,126.22,6.72956138]
[1766067381990,0.65,126.26,126.21,6.72956138]
[1766067382384,0.65,126.26,126.22,6.72956138]
[1766067383870,0.65,126.26,126.21,16.58327639]
[1766067384084,0.65,126.26,126.22,6.72956138]
[1766067384287,7.37956138,126.26,126.21,6.72956138]
[1766067384599,0.65,126.29,126.23,6.72956138]
[1766067384903,0.65,126.27,126.2,8.66]
[1766067385199,0.65,126.26,126.21,8.66]
[1766067385407,0.65,126.26,126.22,6.72956138]
[1766067386993,0.65,126.26,126.21,8.66]
[1766067387493,7.37956138,126.25,126.2,15.38956138]
[1766067387692,0.65,126.25,126.21,6.72956138]
[1766067387894,0.65,126.29,126.21,16.58324986]
[1766067388074,6.72956138,126.27,126.22,6.72956138]
[1766067388275,0.65,126.26,126.22,6.72956138]
[1766067389092,0.65,126.26,126.23,6.72956138]
[1766067389305,0.65,126.29,126.25,6.72956138]
[1766067389601,7.91676689,126.32,126.23,6.72956138]
[1766067389602,6.72956138,126.28,126.23,6.72956138]
[1766067389779,0.65,126.27,126.23,6.72956138]
[1766067390186,0.65,126.3,126.24,6.72956138]
[1766067390385,6.72956138,126.28,126.2,10.43767296]
[1766067390693,0.65,126.26,126.21,16.583192]
[1766067390901,0.65,126.26,126.22,6.72956138]
[1766067391407,0.65,126.26,126.21,16.583192]
[1766067391618,0.65,126.26,126.23,6.72956138]
[1766067391782,0.65,126.26,126.21,16.583192]
[1766067392174,0.65,126.26,126.23,6.72956138]
[1766067392600,0.65,126.26,126.22,6.72956138]
[1766067392790,0.65,126.26,126.23,6.72956138]
[1766067393397,0.65,126.29,126.23,7.92196257]
[1766067393590,0.65,126.28,126.24,6.72956138]
[1766067393996,0.65,126.28,126.25,6.72956138]
[1766067394209,7.37956138,126.28,126.22,7.92254281]
[1766067394508,0.65,126.27,126.25,6.72956138]
[1766067394810,17.48994492,126.33,126.22,28.61554969]
[1766067394976,0.65,126.29,126.25,6.72956138]
[1766067395175,0.65,126.29,126.26,6.72956138]
[1766067395808,0.65,126.29,126.27,6.72956138]
[1766067396012,16.59604443,126.33,126.27,6.72956138]
[1766067396206,0.65,126.31,126.23,19.80432062]
[1766067396512,0.65,126.31,126.27,6.72956138]
[1766067396835,0.65,126.38,126.3,6.72956138]
[1766067396979,0.65,126.38,126.27,15.38956138]
[1766067396980,0.65,126.38,126.31,8.66]
[1766067397409,0.65,126.38,126.28,22.08731356]
[1766067397410,7.37956138,126.33,126.26,19.09767296]
[1766067397611,7.37956138,126.33,126.28,6.72956138]
[1766067397915,0.65,126.34,126.3,6.72956138]
[1766067398081,0.65,126.33,126.29,6.72956138]
[1766067398282,6.72956138,126.33,126.28,6.72956138]
[1766067398521,7.37956138,126.32,126.27,15.38956138]
[1766067398898,0.65,126.32,126.29,6.72956138]
[1766067399195,0.65,126.32,126.26,19.09767296]
[1766067399383,0.65,126.32,126.28,6.72956138]
[1766067399583,0.65,126.32,126.29,6.72956138]
[1766067399887,0.65,126.32,126.28,6.72956138]
[1766067400308,0.65,126.31,126.26,19.09767296]
[1766067400510,0.65,126.31,126.27,6.72956138]
[1766067401240,0.65,126.31,126.29,6.72956138]
[1766067401513,0.65,126.31,126.29,10.91359649]
[1766067401699,0.65,126.35,126.29,10.91359649]
[1766067401891,0.65,126.33,126.26,10.43767296]
[1766067402094,0.65,126.32,126.26,27.01767745]
[1766067402439,0.65,126.4,126.3,27.7117973]
[1766067402716,0.65,126.34,126.3,10.91359649]
[1766067402884,10.91359649,126.35,126.3,10.91359649]
[1766067403087,0.65,126.38,126.34,10.91359649]
[1766067403312,0.65,126.38,126.29,36.52379262]
[1766067403313,10.91359649,126.38,126.33,10.91359649]
[1766067403516,0.65,126.38,126.34,10.91359649]
[1766067403919,0.65,126.38,126.29,36.52379262]
[1766067403920,0.65,126.38,126.32,10.43767296]
[1766067404087,0.65,126.38,126.32,21.35126945]
[1766067404411,0.65,126.38,126.35,10.91359649]
[1766067404709,0.65,126.38,126.34,10.91359649]
[1766067404899,0.65,126.38,126.35,10.91359649]
[1766067405321,0.65,126.4,126.32,19.09767296]
[1766067405517,0.65,126.4,126.35,10.91359649]
[1766067405923,0.65,126.4,126.36,10.91359649]
[1766067406228,0.65,126.39,126.34,10.91359649]
[1766067406410,10.91359649,126.39,126.34,10.91359649]
[1766067406611,0.65,126.38,126.34,10.91359649]
[1766067407040,0.65,126.38,126.35,10.91359649]
[1766067407532,0.65,126.38,126.34,10.91359649]
[1766067407740,0.65,126.38,126.32,38.8878037]
[1766067408040,0.85,126.41,126.33,27.70459721]
[1766067408204,0.85,126.41,126.37,10.91359649]
[1766067409129,0.65,126.4,126.37,10.91359649]
[1766067409436,0.85,126.41,126.38,10.91359649]
[1766067410305,0.85,126.41,126.34,8.80994492]
[1766067410505,0.85,126.41,126.36,10.43767296]
[1766067410721,0.85,126.41,126.37,10.91359649]
[1766067410918,0.85,126.41,126.38,10.91359649]
[1766067412030,0.85,126.41,126.36,18.35116542]
[1766067412343,0.65,126.4,126.36,10.43767296]
[1766067412528,0.65,126.4,126.37,10.91359649]
[1766067412733,0.65,126.4,126.36,18.35130167]
[1766067412938,0.65,126.4,126.38,10.91359649]
[1766067413139,0.2,126.41,126.38,10.91359649]
[1766067413343,0.65,126.43,126.4,10.91359649]
[1766067413543,0.65,126.46,126.38,7.9121536]
[1766067413741,0.65,126.41,126.35,7.91429322]
[1766067413925,0.65,126.41,126.37,10.91359649]
[1766067414347,0.65,126.41,126.35,18.35198391]
[1766067414551,0.65,126.41,126.36,10.91359649]
[1766067414853,0.65,126.4,126.36,10.91359649]
[1766067415147,0.65,126.38,126.31,19.7917554]
[1766067415451,0.65,126.38,126.34,10.91359649]
[1766067415950,0.65,126.38,126.35,10.91359649]
[1766067417019,0.65,126.38,126.33,10.91359649]
[1766067417223,0.65,126.38,126.31,27.16434898]
[1766067417437,0.65,126.36,126.31,7.91692341]
[1766067417636,0.65,126.36,126.33,10.91359649]
[1766067417838,0.65,126.38,126.33,10.91359649]
[1766067418247,0.65,126.38,126.34,10.91359649]
[1766067418618,0.65,126.37,126.3,19.09767296]
[1766067418813,0.65,126.37,126.33,10.43767296]
[1766067419245,0.65,126.37,126.33,21.35126945]
[1766067419449,0.65,126.37,126.34,10.91359649]
[1766067419830,0.65,126.4,126.35,10.91359649]
[1766067420058,0.65,126.39,126.35,10.91359649]
[1766067420500,10.91359649,126.42,126.36,10.91359649]
[1766067420778,39.53357879,126.48,126.35,10.43767296]
[1766067420779,0.7,126.4,126.35,10.43767296]
[1766067420936,0.7,126.39,126.35,10.43767296]
[1766067421337,0.7,126.45,126.38,10.91359649]
[1766067421537,0.7,126.46,126.37,8.66]
[1766067421736,0.7,126.41,126.37,8.66]
[1766067421957,0.7,126.39,126.35,10.43767296]
[1766067422261,0.7,126.39,126.35,21.35126945]
[1766067422647,0.7,126.39,126.35,10.43767296]
[1766067422841,0.7,126.39,126.35,10.91359649]
[1766067423240,0.7,126.42,126.36,10.43767296]
[1766067423545,11.61359649,126.42,126.36,10.43767296]
[1766067423753,0.7,126.4,126.36,30.01126945]
[1766067423950,0.7,126.4,126.34,7.9149113]
[1766067423951,10.91359649,126.39,126.34,10.91359649]
[1766067424150,0.7,126.38,126.34,10.91359649]
[1766067424555,0.7,126.38,126.33,10.43767296]
[1766067424754,0.7,126.38,126.34,10.91359649]
[1766067424951,0.7,126.38,126.33,21.35126945]
[1766067425348,0.7,126.38,126.34,10.91359649]
[1766067425551,0.7,126.45,126.37,10.91359649]
[1766067425868,153.23823554,126.51,126.4,10.91359649]
[1766067425869,0.7,126.43,126.4,10.91359649]
[1766067426164,4.13352858,126.54,126.42,18.82357326]
[1766067426165,0.7,126.46,126.42,18.82357326]
[1766067426363,10.91359649,126.47,126.39,10.43767296]
[1766067426549,19.7621082,126.51,126.39,10.43767296]
[1766067426550,0.7,126.43,126.39,10.43767296]
[1766067426966,0.7,126.43,126.37,8.66]
[1766067427170,0.7,126.42,126.37,10.91359649]
[1766067427374,0.7,126.41,126.36,30.01126945]
[1766067427540,0.7,126.37,126.29,8.80994492]
[1766067427749,0.7,126.37,126.24,0.99999999]
[1766067427750,0.7,126.35,126.27,19.79798738]
[1766067428056,0.7,126.34,126.28,16.57891035]
[1766067428256,0.7,126.31,126.23,11.94847975]
[1766067428460,10.91359649,126.3,126.24,8.66]
[1766067428666,0.7,126.29,126.24,19.57359649]
[1766067428864,0.7,126.29,126.24,8.66]
[1766067429061,0.7,126.29,126.24,19.57359649]
[1766067429274,0.7,126.29,126.24,8.66]
[1766067429650,8.80994492,126.34,126.28,10.91359649]
[1766067429851,0.7,126.32,126.27,18.35675002]
[1766067430147,0.7,126.32,126.29,10.91359649]
[1766067430472,0.7,126.36,126.31,10.91359649]
[1766067430672,10.91359649,126.4,126.32,8.66]
[1766067430875,0.7,126.39,126.32,8.66]
[1766067431181,0.7,126.38,126.33,10.91359649]
[1766067431570,20.42354141,126.38,126.31,10.43767296]
[1766067431870,20.42354141,126.38,126.27,27.7179208]
[1766067431871,19.72354141,126.35,126.27,27.7179208]
[1766067432042,0.7,126.32,126.29,7.91828331]
[1766067432241,0.7,126.35,126.3,10.91359649]
[1766067432464,0.7,126.35,126.28,27.71603381]
[1766067432465,0.7,126.35,126.31,10.91359649]
[1766067432656,0.72,126.34,126.3,10.91359649]
[1766067432849,0.72,126.32,126.28,7.91875792]
[1766067433043,0.72,126.32,126.28,18.83235441]
[1766067433246,0.72,126.32,126.28,7.91875792]
[1766067433569,8.80994492,126.35,126.28,7.91875792]
[1766067433570,0.72,126.34,126.3,10.91359649]
[1766067433747,0.72,126.34,126.28,27.71603381]
[1766067434076,0.72,126.33,126.3,18.83125286]
[1766067434245,0.72,126.33,126.29,18.83164574]
[1766067434449,0.72,126.33,126.29,7.91804925]
[1766067434774,0.72,126.33,126.3,10.91359649]
[1766067435363,8.66,126.4,126.32,10.91359649]
[1766067435572,10.43767296,126.39,126.31,10.91359649]
[1766067435756,10.91359649,126.37,126.29,38.8414305]
[1766067435958,10.91359649,126.36,126.31,10.91359649]
[1766067436579,10.91359649,126.35,126.3,10.91359649]
[1766067436768,10.91359649,126.34,126.29,57.72502699]
[1766067436971,10.91359649,126.34,126.29,46.8114305]
[1766067436972,10.911175,126.34,126.29,46.8114305]
[1766067437168,10.851175,126.32,126.27,7.91891277]
[1766067437353,0.72,126.31,126.27,7.91891277]
[1766067437549,0.72,126.31,126.23,0.69]
[1766067437754,0.72,126.3,126.26,7.91998229]
[1766067437975,10.911175,126.33,126.27,10.911175]
[1766067438187,0.72,126.33,126.29,10.911175]
[1766067438350,0.72,126.36,126.32,10.911175]
[1766067438555,0.72,126.35,126.31,10.911175]
[1766067439054,0.72,126.35,126.32,10.911175]
[1766067439249,11.631175,126.35,126.29,11.12767296]
[1766067439468,0.72,126.32,126.28,7.91852106]
[1766067439670,11.631175,126.32,126.28,7.91852106]
[1766067439870,0.72,126.32,126.28,7.91852106]
[1766067440246,0.72,126.32,126.28,18.82969606]
[1766067440579,11.631175,126.35,126.29,10.911175]
[1766067440761,11.631175,126.35,126.3,10.911175]
[1766067440955,0.72,126.38,126.33,10.911175]
[1766067441261,0.72,126.37,126.32,10.911175]
[1766067441986,11.631175,126.37,126.32,10.911175]
[1766067442352,0.72,126.37,126.33,7.91577614]
[1766067442560,11.631175,126.39,126.34,10.911175]
[1766067442768,0.72,126.39,126.34,10.911175]
[1766067443075,0.72,126.39,126.33,27.70521649]
[1766067443278,0.72,126.39,126.35,10.911175]
[1766067443674,10.911175,126.41,126.35,8.66]
[1766067443991,0.72,126.4,126.35,19.571175]
[1766067444372,17.46994492,126.43,126.36,18.82454318]
[1766067444571,11.631175,126.42,126.37,10.911175]
[1766067444774,11.631175,126.45,126.39,10.911175]
[1766067444989,0.72,126.41,126.36,18.82454318]
[1766067445286,0.72,126.41,126.36,16.57336818]
[1766067445499,11.631175,126.4,126.35,30.00884796]
[1766067445689,11.631175,126.4,126.35,27.01182988]
[1766067445892,8.80994492,126.44,126.36,18.82461072]
[1766067446069,10.911175,126.41,126.36,7.91343572]
[1766067446269,0.72,126.4,126.36,7.91343572]
[1766067446899,0.72,126.4,126.36,10.911175]
[1766067447071,10.911175,126.38,126.3,0.69]
[1766067447392,11.631175,126.36,126.31,10.911175]
[1766067447568,0.72,126.36,126.31,10.911175]
[1766067447775,0.72,126.36,126.3,16.57728828]
[1766067447776,11.631175,126.36,126.3,16.57728828]
[1766067447971,19.24761788,126.39,126.31,10.911175]
[1766067448168,0.72,126.34,126.3,8.66]
[1766067448373,0.72,126.34,126.3,19.571175]
[1766067448569,0.72,126.34,126.31,10.911175]
[1766067448815,0.72,126.36,126.32,10.911175]
[1766067449497,11.631175,126.36,126.32,10.911175]
[1766067449682,11.631175,126.36,126.31,10.911175]
[1766067450199,11.631175,126.38,126.33,10.911175]
[1766067450397,0.72,126.38,126.34,10.911175]
[1766067450599,11.631175,126.38,126.32,0.69]
[1766067450773,11.631175,126.37,126.32,10.911175]
[1766067450975,0.72,126.36,126.32,19.571175]
[1766067451378,7.91228498,126.39,126.33,10.911175]
[1766067451589,11.631175,126.38,126.33,10.911175]
[1766067451794,10.911175,126.36,126.3,0.69]
[1766067451987,7.91228498,126.39,126.3,0.69]
[1766067451988,11.631175,126.35,126.3,30.00884796]
[1766067452191,0.72,126.35,126.31,10.911175]
[1766067452883,11.631175,126.38,126.33,10.911175]
[1766067453187,11.631175,126.38,126.31,0.69]
[1766067453397,0.72,126.37,126.33,10.911175]
[1766067453595,0.72,126.37,126.31,0.69]
[1766067453816,0.72,126.37,126.33,10.911175]
[1766067454179,11.631175,126.37,126.32,10.911175]
[1766067454499,0.72,126.37,126.32,10.911175]
[1766067454682,11.631175,126.37,126.32,10.911175]
[1766067455307,28.58907094,126.4,126.31,8.6070115]
[1766067455308,0.72,126.39,126.33,5.80919368]
[1766067455504,0.72,126.39,126.34,16.72036868]
[1766067455810,10.911175,126.41,126.36,10.911175]
[1766067455999,0.72,126.41,126.36,10.911175]
[1766067456198,11.631175,126.4,126.35,8.66]
[1766067456379,11.631175,126.39,126.35,8.66]
[1766067456581,11.631175,126.37,126.32,21.34884796]
[1766067456781,0.72,126.37,126.32,30.00884796]
[1766067457103,11.631175,126.38,126.33,10.911175]
[1766067457293,11.631175,126.38,126.32,19.09767296]
[1766067457494,0.72,126.4,126.32,19.09767296]
[1766067457690,10.911175,126.37,126.32,10.43767296]
[1766067457910,0.72,126.36,126.32,10.43767296]
[1766067458083,0.72,126.36,126.32,21.34884796]
[1766067458806,0.72,126.39,126.32,18.3538782]
[1766067458995,0.72,126.38,126.33,10.911175]
[1766067459310,0.72,126.4,126.33,0.69]
[1766067459481,11.631175,126.4,126.35,10.911175]
[1766067460196,0.72,126.4,126.35,18.82566349]
[1766067460398,8.66,126.42,126.36,10.911175]
[1766067460581,0.72,126.41,126.37,10.911175]
[1766067460777,10.911175,126.41,126.35,17.26448849]
[1766067461083,11.631175,126.38,126.35,8.66]
[1766067461414,7.42918036,126.4,126.35,15.36918036]
[1766067461609,0.72,126.4,126.35,15.36918036]
[1766067461807,0.72,126.4,126.35,16.57446894]
[1766067462111,9.38,126.42,126.35,17.26446894]
[1766067462296,6.70918036,126.41,126.35,17.26446894]
[1766067462911,0.69,126.45,126.4,6.70918036]
[1766067463119,8.66,126.47,126.38,8.66]
[1766067463291,0.69,126.39,126.35,10.43767296]
[1766067463498,6.70918036,126.4,126.35,25.7213393]
[1766067463697,0.69,126.41,126.35,19.01215894]
[1766067463898,0.69,126.41,126.35,11.09767296]
[1766067464214,0.69,126.41,126.35,17.80685332]
[1766067464385,6.70918036,126.4,126.35,17.80685332]
[1766067464588,0.69,126.41,126.35,11.09767296]
[1766067464900,6.70918036,126.4,126.35,17.80685332]
[1766067465089,7.39918036,126.41,126.35,19.01211777]
[1766067465285,0.69,126.41,126.36,6.70918036]
[1766067465910,7.39918036,126.41,126.36,6.70918036]
[1766067466089,0.69,126.41,126.36,6.70918036]
[1766067466283,0.69,126.41,126.37,6.70918036]
[1766067466485,0.69,126.41,126.36,0.66]
[1766067466786,7.39918036,126.42,126.37,0.66]
[1766067467095,6.70918036,126.41,126.35,27.67215727]
[1766067467296,6.70918036,126.41,126.36,6.70918036]
[1766067467496,7.39918036,126.41,126.36,6.70918036]
[1766067467995,7.39918036,126.41,126.35,19.75767296]
[1766067468201,0.69,126.4,126.35,19.09767296]
[1766067468399,7.39918036,126.38,126.35,10.43767296]
[1766067468606,7.39918036,126.37,126.31,17.38677725]
[1766067468817,7.39918036,126.37,126.32,15.36918036]
[1766067469120,6.70918036,126.38,126.33,7.36918036]
[1766067469410,6.70918036,126.38,126.33,15.28491884]
[1766067469613,7.39918036,126.38,126.33,15.28491884]
[1766067469813,6.70918036,126.39,126.34,8.57509063]
[1766067470019,0.69,126.39,126.33,14.62469039]
[1766067470210,10.43767296,126.41,126.37,6.70918036]
[1766067470398,6.70918036,126.4,126.37,10.43767296]
[1766067470711,0.69,126.4,126.34,10.43767296]
[1766067471012,0.69,126.39,126.34,17.14685332]
[1766067471214,7.39918036,126.39,126.34,17.14685332]
[1766067471413,6.70918036,126.38,126.34,10.43767296]
[1766067472011,6.70918036,126.43,126.37,17.14685332]
[1766067472194,6.70918036,126.42,126.37,17.80685332]
[1766067472387,0.69,126.42,126.37,10.43767296]
[1766067472590,7.39918036,126.42,126.37,17.14685332]
[1766067472800,7.39918036,126.42,126.38,10.43767296]
[1766067473008,6.70918036,126.41,126.38,10.43767296]
[1766067473295,7.39918036,126.41,126.37,10.43767296]
[1766067474116,0.69,126.43,126.37,17.14685332]
[1766067474410,0.69,126.43,126.38,6.70918036]
[1766067474624,7.39918036,126.43,126.38,6.70918036]
[1766067475003,0.69,126.43,126.38,6.70918036]
[1766067475226,7.39918036,126.43,126.38,6.70918036]
[1766067475516,0.69,126.41,126.37,17.14685332]
[1766067476000,0.69,126.41,126.39,10.43767296]
[1766067476198,0.69,126.44,126.39,17.14685332]
[1766067476505,0.69,126.44,126.39,10.43767296]
[1766067476710,7.39918036,126.42,126.39,10.43767296]
[1766067477498,0.69,126.42,126.36,16.02918036]
[1766067477722,0.69,126.42,126.37,10.43767296]
[1766067477913,7.39918036,126.41,126.37,10.43767296]
[1766067478219,7.39918036,126.41,126.36,15.36918036]
[1766067478407,6.70918036,126.4,126.36,10.43767296]
[1766067478609,0.69,126.38,126.36,10.43767296]
[1766067478798,7.39918036,126.41,126.36,17.14685332]
[1766067479208,7.39918036,126.41,126.37,6.70918036]
[1766067479209,0.69,126.41,126.37,6.70918036]
[1766067479706,0.69,126.47,126.36,25.80685332]
[1766067479903,0.69,126.4,126.36,19.09767296]
[1766067480113,6.70918036,126.41,126.36,25.80685332]
[1766067480315,0.69,126.43,126.39,6.70918036]
[1766067480545,0.69,126.43,126.39,10.43767296]
[1766067480705,7.39918036,126.43,126.39,10.43767296]
[1766067480911,0.69,126.43,126.39,10.43767296]
[1766067481108,0.71,126.39,126.34,7.91467621]
[1766067481334,6.70918036,126.4,126.36,10.43767296]
[1766067481512,0.71,126.41,126.36,10.43767296]
[1766067481925,0.71,126.41,126.36,17.14685332]
[1766067482117,7.41918036,126.41,126.36,10.43767296]
[1766067482428,0.71,126.41,126.36,10.43767296]
[1766067482630,7.41918036,126.41,126.36,18.35134957]
[1766067482941,0.71,126.41,126.36,10.43767296]
[1766067483108,0.71,126.4,126.36,10.43767296]
[1766067483303,7.41918036,126.39,126.33,8.66]
[1766067483606,6.70918036,126.37,126.33,8.66]
[1766067483824,27.68777528,126.41,126.3,0.66]
[1766067483825,6.70918036,126.35,126.3,0.66]
[1766067484138,0.71,126.38,126.28,0.66]
[1766067484427,7.41918036,126.36,126.3,19.01529094]
[1766067484628,0.71,126.36,126.31,6.70918036]
[1766067484833,0.71,126.4,126.35,6.70918036]